fUSD/lending_fUSD_20240203
["ID","MTS","AMOUNT","RATE_DAILY","PERIOD"]
[313199233,1706926235787,-500.0,0.00022685,2]
[313199234,1706926235797,-450.0,0.00022685,2]
[313199235,1706926235806,-500.0,0.00022685,5]
[313199236,1706926235816,-609.19173042,0.00022685,2]
[313199237,1706926235826,-500.0,0.00022685,2]
[313199238,1706926235835,-179.2450002,0.00022685,2]
[313199239,1706926235845,-500.0,0.00022685,2]
[313199240,1706926235854,-500.0,0.00022685,2]
[313199241,1706926235864,-500.0,0.00022685,2]
[313199242,1706926235874,-500.0,0.00022685,2]
[313199243,1706926235883,-500.0,0.00022685,2]
[313199244,1706926235895,-500.0,0.00022685,2]
[313199245,1706926235904,-500.0,0.00022685,2]
[313199246,1706926235913,-500.0,0.00022685,2]
[313199247,1706926235923,-362.5869618,0.00022685,2]
[313199248,1706926235933,-500.0,0.00022685,2]
[313199249,1706926235944,-500.0,0.00022685,2]
[313199250,1706926235954,-500.0,0.00022685,2]
[313199251,1706926235963,-500.0,0.00022685,2]
[313199252,1706926235973,-635.37597551,0.00022685,2]
[313199253,1706926235984,-150.62102451,0.00022685,2]
[313199254,1706926235995,-641.72209329,0.00022685,2]
[313199255,1706926236005,-500.0,0.00022685,2]
[313199256,1706926236014,-500.0,0.00022685,2]
[313199257,1706926236023,-500.0,0.00022685,2]
[313199258,1706926236033,-500.0,0.00022685,2]
[313199259,1706926236043,-500.0,0.00022685,2]
[313199260,1706926236052,-500.0,0.00022685,2]
[313199261,1706926236062,-634.85449476,0.00022685,2]
[313199262,1706926236071,-500.0,0.00022685,2]
[313199263,1706926236081,-541.31821286,0.00022685,2]
[313199264,1706926236092,-500.0,0.00022685,2]
[313199265,1706926236101,-500.0,0.00022685,2]
[313199266,1706926236110,-571.44438628,0.00022685,2]
[313199267,1706926236120,-500.0,0.00022685,2]
[313199268,1706926236130,-153.55853164,0.00022685,2]
[313199269,1706926236140,-544.66876051,0.00022685,2]
[313199270,1706926236149,-259.2319584,0.00022685,2]
[313199271,1706926236159,-573.84462612,0.00022685,2]
[313199272,1706926236168,-500.0,0.00022685,2]
[313199273,1706926236178,-500.0,0.00022685,2]
[313199274,1706926236188,-170.98079578,0.00022685,2]
[313199275,1706926236198,-500.0,0.00022685,2]
[313199276,1706926236207,-1356.13,0.00022685,2]
[313199277,1706926236217,-500.0,0.00022685,2]
[313199278,1706926236227,-500.0,0.00022685,2]
[313199279,1706926236236,-500.0,0.00022685,2]
[313199280,1706926236246,-500.0,0.00022685,2]
[313199281,1706926236255,-597.6443419,0.00022685,2]
[313199282,1706926236265,-585.9734739,0.00022685,2]
[313199283,1706926236274,-561.46918441,0.00022685,2]
[313199284,1706926236284,-605.565472,0.00022685,2]
[313199285,1706926236293,-500.0,0.00022685,2]
[313199286,1706926236303,-556.29618227,0.00022685,2]
[313199287,1706926236313,-589.85372104,0.00022685,2]
[313199288,1706926236322,-500.0,0.00022685,2]
[313199289,1706926236332,-500.0,0.00022685,2]
[313199290,1706926236342,-500.0,0.00022685,2]
[313199291,1706926236352,-500.0,0.00022685,2]
[313199292,1706926236361,-501.78371322,0.00022685,2]
[313199293,1706926236371,-463.88861631,0.00022685,2]
[313199294,1706926236381,-229.14745302,0.00022685,2]
[313199295,1706926236390,-500.0,0.00022685,2]
[313199296,1706926236400,-500.0,0.00022685,2]
[313199297,1706926236409,-500.0,0.00022685,2]
[313199298,1706926236419,-500.0,0.00022685,2]
[313199299,1706926236429,-500.0,0.00022685,2]
[313199300,1706926236439,-565.8921032,0.00022685,2]
[313199301,1706926236449,-572.1267879,0.00022685,2]
[313199302,1706926236459,-500.0,0.00022685,2]
[313199303,1706926236469,-528.12,0.00022685,2]
[313199304,1706926236478,-500.0,0.00022685,2]
[313199305,1706926236488,-568.63254476,0.00022685,2]
[313199306,1706926236498,-547.87219408,0.00022685,2]
[313199307,1706926236508,-589.87047947,0.00022685,2]
[313199308,1706926236517,-537.00538001,0.00022685,2]
[313199309,1706926236526,-500.0,0.00022685,2]
[313199310,1706926236536,-256.8440226,0.00022685,2]
[313199311,1706926236545,-152.33337699,0.00022685,2]
[313199312,1706926236554,-1957.01,0.00022685,2]
[313199313,1706926236563,-215.42229991,0.00022686,2]
[313199314,1706926236572,-137589.38414767,0.00022687,2]
[313199315,1706926236610,-175.40188843,0.00022685,2]
[313199316,1706926236619,-1325.61551904,0.00022687,2]
[313199323,1706926238618,-3911.57422956,0.00022687,2]
[313199324,1706926238674,-995.22855048,0.00022687,2]
[313199338,1706926241674,-500.0,0.00022684,2]
[313199339,1706926241684,-739.35744876,0.00022687,2]
[313199340,1706926241729,-707.75689818,0.00022687,2]
[313199341,1706926241788,-796.77093101,0.00022687,2]
[313199342,1706926241799,-255.26359589,0.00022687,2]
[313199367,1706926244317,-500.0,0.00022684,2]
[313199370,1706926244326,-421.70056316,0.00022684,2]
[313199372,1706926244336,-532.84053396,0.00022685,2]
[313199375,1706926244345,-357.18697439,0.00022687,2]
[313199385,1706926244426,-500.0,0.00022684,2]
[313199386,1706926244436,-3845.11802851,0.00022687,2]
[313199387,1706926244483,-877.58877365,0.00022687,2]
[313199388,1706926244495,-901.21907368,0.00022687,2]
[313199389,1706926244507,-256.81548211,0.00022687,2]
[313199390,1706926244519,-985.239992,0.00022687,2]
[313199522,1706926245900,672.894,0.000225,2]
[313199572,1706926246611,-554.20434969,0.00022684,2]
[313199573,1706926246621,-266.59705539,0.00022684,2]
[313199574,1706926246630,-594.27403864,0.00022685,2]
[313199575,1706926246639,-5037.98840945,0.00022687,2]
[313199576,1706926246719,-874.86681029,0.00022687,2]
[313199595,1706926271384,462.35,0.00021804,2]
[313199596,1706926302454,23900.0,0.00021781,2]
[313199597,1706926397681,156.53332071,0.000225,2]
[313199598,1706926448631,209.27,0.00019821,2]
[313199599,1706926448980,209.27,0.00022085,2]
[313199600,1706926504083,672.68,0.00021739,2]
[313199601,1706926577226,179.13,0.00021885,2]
[313199602,1706926603780,272.46,0.00021711,2]
[313199603,1706926627751,155.96,0.00021711,2]
[313199604,1706926653818,419.8735,0.000225,2]
[313199605,1706926684820,630.12,0.00021704,2]
[313199606,1706926752219,4505.2205,0.000225,2]
[313199607,1706926786306,35057.80237084,0.000224,2]
[313199608,1706926911216,188.34,0.00019794,2]
[313199609,1706926911255,188.34,0.00022058,2]
[313199610,1706926939628,560.56,0.00021716,2]
[313199611,1706926987431,20000.0,0.0002,2]
[313199612,1706926995249,15000.0,0.00022,2]
[313199613,1706927044936,-1045.1943779,0.00022505,2]
[313199614,1706927044960,-800.0,0.00022506,2]
[313199615,1706927065046,1190.8056221,0.00022499,2]
[313199616,1706927065066,21552.0718779,0.00022499,2]
[313199617,1706927086060,245000.0,0.00022499,2]
[313199618,1706927089799,100000.0,0.00022499,2]
[313199619,1706927095360,495.9,0.00021684,2]
[313199620,1706927148500,9043.10947622,0.00026,120]
[313199621,1706927189960,68029.0,0.00025999,120]
[313199622,1706927212926,9771.4948,0.00022499,2]
[313199623,1706927284412,209.0,0.00021622,2]
[313199624,1706927306693,6910.64570823,0.000225,2]
[313199625,1706927313049,156.53332067,0.00022484,2]
[313199626,1706927365627,169.5,0.00019784,2]
[313199627,1706927365653,169.5,0.00022048,2]
[313199628,1706927403202,467.13,0.0002169,2]
[313199645,1706927431493,-471.99126604,0.00022517,2]
[313199647,1706927431504,-190.91405629,0.00022517,2]
[313199649,1706927431513,-471.99126603,0.00022572,2]
[313199651,1706927431522,-832.27493427,0.00022584,2]
[313199653,1706927431531,-395.8888,0.00022585,2]
[313199656,1706927431541,-160.88585138,0.0002259,2]
[313199659,1706927431550,-150.0,0.00022596,2]
[313199662,1706927431559,-155.4893666,0.00022597,2]
[313199665,1706927431568,-1047.52615169,0.00022597,2]
[313199667,1706927431577,-16870.08141694,0.00022598,2]
[313199668,1706927431586,-569.43327034,0.00022598,2]
[313199669,1706927431595,-576.41747594,0.00022598,2]
[313199670,1706927431605,-157.29148689,0.00022598,2]
[313199671,1706927431614,-129791.74434938,0.00022599,2]
[313199672,1706927431623,-182.37653842,0.00022599,2]
[313199673,1706927431632,-714.35,0.00022599,2]
[313199674,1706927431642,-500.0,0.00022599,2]
[313199675,1706927431651,-500.0,0.00022599,2]
[313199676,1706927431660,-500.0,0.00022599,2]
[313199677,1706927431669,-560.45528839,0.00022599,2]
[313199678,1706927431678,-500.0,0.00022599,2]
[313199679,1706927431689,-636.00192315,0.00022599,2]
[313199680,1706927431698,-500.92634395,0.00022599,2]
[313199681,1706927431709,-500.0,0.00022599,2]
[313199682,1706927431718,-500.0,0.00022599,2]
[313199683,1706927431727,-603.7157766,0.00022599,2]
[313199684,1706927431736,-599.38236477,0.00022599,2]
[313199685,1706927431746,-556.0451771,0.00022599,2]
[313199686,1706927431756,-200.59076069,0.00022599,2]
[313199687,1706927431766,-562.07447965,0.00022599,2]
[313199688,1706927431775,-553.27096258,0.00022599,2]
[313199689,1706927431784,-500.0,0.00022599,2]
[313199690,1706927431793,-567.56412105,0.00022599,2]
[313199691,1706927431803,-557.07141968,0.00022599,2]
[313199692,1706927431812,-572.28450775,0.00022599,2]
[313199693,1706927431821,-568.64433575,0.00022599,2]
[313199694,1706927431830,-500.0,0.00022599,2]
[313199696,1706927431839,-500.0,0.00022599,2]
[313199698,1706927431848,-550.9318614,0.00022599,2]
[313199699,1706927431858,-543.33718572,0.00022599,2]
[313199700,1706927431867,-572.07755394,0.00022599,2]
[313199701,1706927431876,-202.91283919,0.00022599,2]
[313199702,1706927431886,-205.3162772,0.00022599,2]
[313199704,1706927431895,-572.44443689,0.00022599,2]
[313199706,1706927431905,-500.0,0.00022599,2]
[313199708,1706927431914,-560.48270195,0.00022599,2]
[313199710,1706927431923,-514.44,0.00022599,2]
[313199712,1706927431933,-288.38093853,0.00022599,2]
[313199714,1706927431942,-500.0,0.00022599,2]
[313199716,1706927431953,-500.0,0.00022599,2]
[313199718,1706927431963,-500.0,0.00022599,2]
[313199720,1706927431972,-506.12,0.00022599,2]
[313199722,1706927431981,-500.0,0.00022599,2]
[313199724,1706927431990,-676.02,0.00022599,2]
[313199726,1706927431999,-500.0,0.00022599,2]
[313199728,1706927432009,-540.21095557,0.00022599,2]
[313199730,1706927432018,-500.0,0.00022599,2]
[313199732,1706927432027,-500.0,0.00022599,2]
[313199734,1706927432036,-500.0,0.00022599,2]
[313199736,1706927432045,-500.0,0.00022599,2]
[313199738,1706927432054,-500.0,0.00022599,2]
[313199740,1706927432063,-500.0,0.00022599,2]
[313199742,1706927432072,-500.0,0.00022599,2]
[313199744,1706927432081,-378.49,0.00022599,2]
[313199746,1706927432090,-1646.97,0.00022599,2]
[313199748,1706927432099,-929.15,0.00022599,2]
[313199750,1706927432109,-499.99,0.00022599,2]
[313199752,1706927432118,-500.0,0.00022599,5]
[313199754,1706927432127,-500.0,0.00022599,2]
[313199756,1706927432136,-465.55994251,0.00022599,2]
[313199758,1706927432145,-500.0,0.00022599,2]
[313199760,1706927432154,-500.0,0.00022599,2]
[313199761,1706927432163,-569.18376939,0.00022599,2]
[313199762,1706927432172,-567.85637329,0.00022599,2]
[313199763,1706927432181,-500.0,0.00022599,2]
[313199764,1706927432190,-316.8280908,0.00022599,2]
[313199765,1706927432199,-500.0,0.00022599,2]
[313199766,1706927432213,-569.63965008,0.00022599,2]
[313199767,1706927432221,-500.0,0.00022599,2]
[313199768,1706927432230,-261.27466636,0.00022599,2]
[313199769,1706927432239,-500.0,0.00022599,2]
[313199770,1706927432249,-500.0,0.00022599,2]
[313199771,1706927432258,-500.0,0.00022599,2]
[313199772,1706927432267,-587.16,0.00022599,2]
[313199773,1706927432276,-500.0,0.00022599,2]
[313199774,1706927432285,-500.0,0.00022599,2]
[313199775,1706927432295,-500.0,0.00022599,2]
[313199776,1706927432304,-1299.62,0.00022599,2]
[313199777,1706927432313,-500.0,0.00022599,2]
[313199778,1706927432322,-500.0,0.00022599,2]
[313199779,1706927432331,-500.0,0.00022599,2]
[313199780,1706927432340,-563.48,0.00022599,2]
[313199781,1706927432349,-965.93,0.00022599,2]
[313199782,1706927432359,-500.0,0.00022599,2]
[313199783,1706927432367,-500.0,0.00022599,2]
[313199784,1706927432377,-1106.12,0.00022599,2]
[313199785,1706927432386,-500.0,0.00022599,2]
[313199786,1706927432395,-500.0,0.00022599,2]
[313199787,1706927432404,-309.70692102,0.00022599,2]
[313199788,1706927432414,-441.92617026,0.00022599,2]
[313199789,1706927432423,-536.27142391,0.00022599,2]
[313199790,1706927432432,-549.22891621,0.00022599,2]
[313199791,1706927432440,-500.0,0.00022599,2]
[313199792,1706927432449,-500.0,0.00022599,2]
[313199793,1706927432459,-500.0,0.00022599,2]
[313199794,1706927432468,-500.0,0.00022599,2]
[313199795,1706927432478,-500.0,0.00022599,2]
[313199796,1706927432486,-500.0,0.00022599,2]
[313199797,1706927432495,-500.0,0.00022599,2]
[313199798,1706927432504,-500.0,0.00022599,2]
[313199799,1706927432513,-500.0,0.00022599,2]
[313199800,1706927432522,-500.0,0.00022599,2]
[313199801,1706927432531,-500.0,0.00022599,2]
[313199802,1706927432540,-194.16535213,0.00022599,2]
[313199803,1706927432549,-246.39948973,0.00022599,2]
[313199804,1706927432558,-500.0,0.00022599,2]
[313199805,1706927432567,-457.65712536,0.00022599,2]
[313199806,1706927432577,-500.0,0.00022599,2]
[313199807,1706927432588,-500.0,0.00022599,2]
[313199808,1706927432597,-555.1316272,0.00022599,2]
[313199809,1706927432606,-647.94918014,0.00022599,2]
[313199810,1706927432617,-500.0,0.00022599,2]
[313199811,1706927432626,-500.0,0.00022599,2]
[313199812,1706927432638,-500.0,0.00022599,2]
[313199813,1706927432647,-364.4458644,0.00022599,2]
[313199814,1706927432656,-500.0,0.00022599,2]
[313199815,1706927432665,-601.26402912,0.00022599,2]
[313199816,1706927432674,-500.0,0.00022599,2]
[313199817,1706927432684,-307.30925808,0.00022599,2]
[313199818,1706927432694,-630.9572936,0.00022599,2]
[313199819,1706927432704,-575.84911925,0.00022599,2]
[313199820,1706927432714,-455.80537454,0.00022599,2]
[313199821,1706927432724,-591.01734128,0.00022599,2]
[313199822,1706927432735,-644.23,0.00022599,2]
[313199823,1706927432744,-500.0,0.00022599,2]
[313199824,1706927432753,-196.94870595,0.00022599,2]
[313199825,1706927432762,-500.0,0.00022599,2]
[313199826,1706927432771,-500.0,0.00022599,2]
[313199827,1706927432779,-500.0,0.00022599,2]
[313199828,1706927432789,-500.0,0.00022599,2]
[313199829,1706927432798,-500.0,0.00022599,2]
[313199830,1706927432807,-581.64001727,0.00022599,2]
[313199831,1706927432816,-500.0,0.00022599,2]
[313199832,1706927432825,-306.79861393,0.00022599,2]
[313199833,1706927432834,-500.0,0.00022599,2]
[313199834,1706927432843,-500.0,0.00022599,2]
[313199835,1706927432852,-500.0,0.00022599,2]
[313199836,1706927432862,-500.0,0.00022599,2]
[313199837,1706927432870,-1004.38,0.00022599,2]
[313199838,1706927432880,-500.0,0.00022599,2]
[313199839,1706927432889,-770.35,0.00022599,2]
[313199840,1706927432898,-601.05827299,0.00022599,2]
[313199841,1706927432907,-2467.63,0.00022599,2]
[313199842,1706927432916,-500.0,0.00022599,2]
[313199843,1706927432926,-500.0,0.00022599,2]
[313199844,1706927432935,-500.0,0.00022599,2]
[313199845,1706927432945,-500.0,0.00022599,2]
[313199846,1706927432954,-500.0,0.00022599,2]
[313199847,1706927432963,-500.0,0.00022599,2]
[313199848,1706927432971,-242.38506201,0.00022599,2]
[313199849,1706927432980,-904.76,0.00022599,2]
[313199850,1706927432990,-559.66777202,0.00022599,2]
[313199851,1706927432999,-275.5938949,0.00022599,2]
[313199852,1706927433008,-500.0,0.00022599,2]
[313199853,1706927433017,-500.0,0.00022599,2]
[313199854,1706927433026,-500.0,0.00022599,2]
[313199855,1706927433036,-500.0,0.00022599,2]
[313199856,1706927433045,-520.76742593,0.00022599,2]
[313199857,1706927433054,-500.0,0.00022599,2]
[313199858,1706927433063,-500.0,0.00022599,2]
[313199859,1706927433072,-500.0,0.00022599,2]
[313199860,1706927433081,-502.121299,0.00022599,2]
[313199861,1706927433090,-1875.46,0.00022599,2]
[313199862,1706927433099,-500.26949539,0.00022599,2]
[313199863,1706927433108,-500.0,0.00022599,2]
[313199864,1706927433116,-246.97835588,0.00022599,2]
[313199865,1706927433126,-500.0,0.00022599,2]
[313199866,1706927433134,-500.0,0.00022599,2]
[313199867,1706927433143,-500.0,0.00022599,2]
[313199868,1706927433152,-500.0,0.00022599,2]
[313199869,1706927433162,-567.67534465,0.00022599,2]
[313199870,1706927433171,-133397.75303095,0.000226,2]
[313199871,1706927433193,-1006.79455589,0.000226,2]
[313199872,1706927433271,-296.67951861,0.000226,2]
[313199873,1706927433282,-1301.43901076,0.000226,2]
[313199877,1706927437836,-544.6798,0.00022516,2]
[313199878,1706927437892,-1003.84775461,0.00022516,2]
[313199979,1706927440127,-322.48406852,0.00022516,2]
[313199980,1706927440359,-1573.92972438,0.00022516,2]
[313199985,1706927442861,-192.2311875,0.00022516,2]
[313199986,1706927442870,-72.24960136,0.00022599,2]
[313199987,1706927445564,-472.50098097,0.00022599,2]
[313199988,1706927445575,-500.0,0.00022599,2]
[313199989,1706927445585,-500.0,0.00022599,2]
[313199990,1706927445594,-614.38927527,0.00022599,2]
[313199991,1706927445605,-500.0,0.00022599,2]
[313199992,1706927445615,-159.24974316,0.00022599,2]
[313199993,1706927445626,-412.85284146,0.00022599,2]
[313199994,1706927445635,-500.0,0.00022599,2]
[313199995,1706927445645,-127.80385203,0.00022599,2]
[313199996,1706927445656,-31.96512882,0.00022599,2]
[313199997,1706927445665,-397.41534754,0.00022599,2]
[313199998,1706927445685,-493.02465246,0.00022599,2]
[313199999,1706927445694,-93.93684904,0.00022599,2]
[313200000,1706927445732,-406.06315096,0.00022599,2]
[313200001,1706927445741,-2418.43685055,0.000226,2]
[313200002,1706927445846,-343.60980816,0.000226,2]
[313200003,1706927445858,-2518.49053516,0.000226,2]
[313200004,1706927445869,-1845.94498508,0.000226,2]
[313200005,1706927445906,-15198.51056524,0.000226,2]
[313200007,1706927471136,18794.58662522,0.00022371,2]
[313200008,1706927487740,3028.58,0.00021731,2]
[313200009,1706927493885,209.0,0.00021622,2]
[313200010,1706927565145,603.28,0.00021683,2]
[313200011,1706927590697,3706.0245,0.00022497,2]
[313200012,1706927724766,353.99344954,0.000225,2]
[313200013,1706927746983,156.53332067,0.00022494,2]
[313200014,1706927801888,152.55,0.00019733,2]
[313200015,1706927802079,152.55,0.00021997,2]
[313200016,1706927825451,389.27,0.00021652,2]
[313200017,1706927895273,525.56385465,0.000225,2]
[313200018,1706927915131,309.74426833,0.000225,2]
[313200019,1706927977987,517.37,0.00021656,2]
[313200020,1706928105734,271.02623485,0.000225,2]
[313200021,1706928122806,250.0,0.00021918,2]
[313200022,1706928187284,156.53332067,0.00022494,2]
[313200023,1706928240307,324.39,0.0002166,2]
[313200024,1706928267160,152.55,0.0001975,2]
[313200025,1706928267575,152.55,0.0002228,2]
[313200026,1706928286816,187.0,0.00020954,2]
[313200027,1706928296398,237.14795545,0.000225,2]
[313200028,1706928306010,164.0,0.00022099,2]
[313200029,1706928394397,586.1,0.00021658,2]
[313200030,1706928423329,1000.0,0.000225,2]
[313200031,1706928486731,207.50446101,0.000225,2]
[313200032,1706928534791,1000.0,0.000225,2]
[313200047,1706928592760,156.53332067,0.00022494,2]
[313200050,1706928631892,-311.16481763,0.00022505,2]
[313200051,1706928631902,-200.0,0.00022506,2]
[313200052,1706928631913,-800.0,0.00022506,2]
[313200053,1706928631922,-207.504461,0.00022557,2]
[313200054,1706928631932,-240.23270144,0.00022585,2]
[313200055,1706928631941,-150.0,0.00022592,2]
[313200056,1706928631950,-516.12024107,0.00022593,2]
[313200057,1706928631959,-1925.64438674,0.00022593,2]
[313200058,1706928631971,-1191.11904289,0.00022593,2]
[313200059,1706928631982,-492.18609625,0.00022593,2]
[313200083,1706928632174,-491.67029575,0.00022593,2]
[313200086,1706928632189,-4676.4933487,0.00022593,2]
[313200088,1706928632201,-1754.23770349,0.00022593,2]
[313200090,1706928632210,-5004.98695083,0.00022594,2]
[313200163,1706928637737,-373.25812696,0.00022594,2]
[313200164,1706928637794,-25266.22272653,0.00022594,2]
[313200165,1706928637900,-10341.35503705,0.00022594,2]
[313200166,1706928637912,-17620.22836132,0.00022594,2]
[313200167,1706928637923,-10555.80408912,0.00022594,2]
[313200168,1706928637935,-12782.44727875,0.00022594,2]
[313200169,1706928637956,-33849.00907774,0.00022594,2]
[313200170,1706928638013,-715.40359523,0.00022594,2]
[313200175,1706928638349,-2392.28282078,0.00022594,2]
[313200176,1706928638394,-10890.74628507,0.00022594,2]
[313200177,1706928638403,-1528.62504332,0.00022595,2]
[313200178,1706928638415,-1558.81135487,0.00022595,2]
[313200221,1706928640480,-697.58489253,0.00022595,2]
[313200222,1706928640492,-431.845,0.00022595,2]
[313200223,1706928640539,-1015.34999995,0.00022595,2]
[313200224,1706928641284,-629.54062197,0.00022595,2]
[313200232,1706928642830,-4764.84943999,0.00022595,2]
[313200233,1706928643006,-523.96296287,0.00022595,2]
[313200234,1706928643042,-11801.87685801,0.00022595,2]
[313200235,1706928643052,-5974.25866963,0.00022596,2]
[313200236,1706928643062,-487.45057549,0.00022596,2]
[313200237,1706928643071,-550.09770865,0.00022596,2]
[313200238,1706928643080,-213.66493924,0.00022596,2]
[313200239,1706928643089,-500.0,0.00022596,2]
[313200241,1706928643099,-602.08441131,0.00022596,2]
[313200243,1706928643108,-500.0,0.00022596,2]
[313200244,1706928643117,-500.0,0.00022596,2]
[313200245,1706928643127,-500.0,0.00022596,2]
[313200246,1706928643136,-500.0,0.00022596,2]
[313200247,1706928643146,-500.0,0.00022596,2]
[313200249,1706928643155,-617.39,0.00022596,2]
[313200252,1706928643165,-500.0,0.00022596,2]
[313200253,1706928643174,-500.0,0.00022596,2]
[313200254,1706928643183,-227.22092844,0.00022596,2]
[313200255,1706928643192,-500.0,0.00022596,2]
[313200256,1706928643201,-500.0,0.00022596,2]
[313200257,1706928643210,-500.0,0.00022596,2]
[313200258,1706928643219,-500.0,0.00022596,2]
[313200259,1706928643228,-2364.81,0.00022596,2]
[313200260,1706928643238,-500.0,0.00022596,2]
[313200261,1706928643247,-500.0,0.00022596,2]
[313200262,1706928643256,-243.39786872,0.00022596,2]
[313200263,1706928643266,-500.0,0.00022596,2]
[313200264,1706928643275,-500.0,0.00022596,2]
[313200265,1706928643284,-500.0,0.00022596,2]
[313200266,1706928643293,-909.37,0.00022596,2]
[313200267,1706928643303,-500.0,0.00022596,2]
[313200268,1706928643312,-500.0,0.00022596,2]
[313200269,1706928643321,-365.94245343,0.00022596,2]
[313200270,1706928643330,-500.0,0.00022596,2]
[313200271,1706928643340,-500.0,0.00022596,2]
[313200272,1706928643349,-174.41769202,0.00022597,2]
[313200273,1706928643358,-1123.49710009,0.00022597,2]
[313200274,1706928643367,-235.5313728,0.00022597,2]
[313200275,1706928643376,-533.63905721,0.00022597,2]
[313200276,1706928643386,-302.52014702,0.00022597,2]
[313200277,1706928643395,-181.58125882,0.00022597,2]
[313200278,1706928643404,-489.78736943,0.00022597,2]
[313200279,1706928643413,-500.0,0.00022597,2]
[313200280,1706928643422,-500.0,0.00022597,2]
[313200281,1706928643431,-399.93066433,0.00022597,2]
[313200282,1706928643440,-500.0,0.00022597,2]
[313200283,1706928643449,-500.0,0.00022597,2]
[313200284,1706928643459,-500.0,0.00022597,2]
[313200285,1706928643467,-500.0,0.00022597,2]
[313200286,1706928643478,-500.0,0.00022597,2]
[313200287,1706928643487,-500.0,0.00022597,2]
[313200288,1706928643497,-500.0,0.00022597,2]
[313200289,1706928643506,-500.0,0.00022597,2]
[313200290,1706928643523,-282.93213449,0.00022597,2]
[313200291,1706928643537,-500.0,0.00022597,2]
[313200292,1706928643549,-500.0,0.00022597,2]
[313200293,1706928643558,-500.0,0.00022597,2]
[313200294,1706928643568,-500.0,0.00022597,2]
[313200295,1706928643578,-500.0,0.00022597,2]
[313200296,1706928643588,-500.0,0.00022597,2]
[313200297,1706928643598,-629.09443364,0.00022597,2]
[313200298,1706928643607,-500.0,0.00022597,2]
[313200299,1706928643617,-500.0,0.00022597,2]
[313200300,1706928643627,-500.0,0.00022597,2]
[313200301,1706928643636,-500.0,0.00022597,2]
[313200302,1706928643646,-500.0,0.00022597,2]
[313200303,1706928643656,-668.69,0.00022597,2]
[313200304,1706928643665,-500.0,0.00022597,2]
[313200305,1706928643675,-500.0,0.00022597,2]
[313200306,1706928643685,-500.0,0.00022597,2]
[313200307,1706928643694,-500.0,0.00022597,2]
[313200308,1706928643703,-500.0,0.00022597,2]
[313200309,1706928643713,-500.0,0.00022597,2]
[313200310,1706928643723,-500.0,0.00022597,2]
[313200311,1706928643733,-500.0,0.00022597,5]
[313200312,1706928643742,-500.0,0.00022597,2]
[313200313,1706928643752,-500.0,0.00022597,2]
[313200314,1706928643761,-500.0,0.00022597,2]
[313200315,1706928643770,-211.49558272,0.00022597,2]
[313200316,1706928643780,-500.0,0.00022597,2]
[313200317,1706928643789,-500.0,0.00022597,2]
[313200318,1706928643799,-500.0,0.00022597,2]
[313200319,1706928643809,-500.0,0.00022597,2]
[313200320,1706928643819,-500.0,0.00022597,2]
[313200321,1706928643831,-500.0,0.00022597,2]
[313200322,1706928643840,-500.0,0.00022597,2]
[313200323,1706928643850,-470.23,0.00022597,2]
[313200324,1706928643859,-500.0,0.00022597,2]
[313200325,1706928643869,-500.0,0.00022597,2]
[313200326,1706928643878,-500.0,0.00022597,2]
[313200327,1706928643887,-500.0,0.00022597,2]
[313200328,1706928643897,-500.0,0.00022597,2]